bitfinex/quotes_ETHUSD_20240714
["timestamp","ask_amount","ask_price","bid_price","bid_amount"]
[1720977456548,3.35173699,3196.2,3196.0,2.50312]
[1720977457638,3.68691069,3196.2,3196.0,2.50312]
[1720977458400,3.35173699,3196.2,3196.0,2.50312]
[1720977462343,3.35173699,3196.2,3196.1,2.50305]
[1720977463152,3.35173699,3196.2,3195.8,2.50321]
[1720977463362,3.35173699,3196.2,3195.6,2.50338]
[1720977463363,2.4938,3196.1,3195.6,2.50338]
[1720977463514,0.4141737,3196.0,3195.8,2.50323]
[1720977463710,0.4536427,3196.0,3195.8,2.50323]
[1720977465258,0.4536427,3196.0,3195.6,2.50338]
[1720977465411,2.4938,3195.9,3195.7,2.50336]
[1720977465616,0.03948173,3195.8,3195.7,2.50336]
[1720977466344,0.3668198,3195.8,3195.7,2.50336]
[1720977468667,0.32733807,3195.8,3195.7,5.507394]
[1720977472768,0.32733807,3195.8,3195.7,5.00672]
[1720977475795,0.32733807,3195.8,3195.7,7.51008]
[1720977475993,0.32733807,3195.8,3195.7,5.00672]
[1720977476311,0.32733807,3195.8,3195.7,5.79672]
[1720977476694,0.32733807,3195.8,3195.7,5.00672]
[1720977478607,0.32733807,3195.8,3195.7,5.79672]
[1720977478811,0.32733807,3195.8,3195.7,6.626737]
[1720977478968,0.32733807,3195.8,3195.7,5.836737]
[1720977480402,0.32733807,3195.8,3195.7,5.00672]
[1720977480977,2.82543807,3195.8,3195.3,7.28]
[1720977481310,0.03750956,3195.7,3195.4,2.50354]
[1720977481484,1.63972094,3195.6,3195.4,5.00707]
[1720977481791,1.63972094,3195.6,3195.5,2.50352]
[1720977482196,0.03736519,3195.6,3195.5,5.00704]
[1720977482784,2.82543807,3195.8,3195.7,2.50336]
[1720977483674,0.32733807,3195.8,3195.7,2.50336]
[1720977485776,0.36440984,3195.8,3195.7,2.50336]
[1720977487074,2.33322392,3195.8,3195.7,2.50336]
[1720977487286,2.33372919,3195.8,3195.7,2.50336]
[1720977488177,2.33381363,3195.8,3195.7,2.50336]
[1720977488506,2.33381363,3195.8,3195.6,2.50339]
[1720977488707,1.96937413,3195.7,3195.6,2.50339]
[1720977489009,2.00680749,3195.7,3195.6,2.50339]
[1720977489411,0.03743336,3195.7,3195.6,2.50339]
[1720977489711,2.2967122,3195.8,3195.6,2.50339]
[1720977489916,0.03743336,3195.7,3195.6,2.50339]
[1720977490285,2.2967122,3195.8,3195.6,2.50339]
[1720977490526,0.03743336,3195.7,3195.6,2.50339]
[1720977490816,2.29681236,3195.8,3195.6,2.50339]
[1720977491007,2.29681236,3195.8,3195.7,2.50336]
[1720977493025,2.33296987,3195.8,3195.7,2.50336]
[1720977493886,2.33262904,3195.8,3195.7,2.50336]
[1720977494297,2.33254128,3195.8,3195.7,2.50336]
[1720977494692,0.36349558,3195.8,3195.7,2.50336]
[1720977495229,2.33255017,3195.8,3195.7,2.50336]
[1720977496328,3.2965606,3195.8,3195.3,2.50366]
[1720977496527,1.64084918,3195.4,3195.3,2.50366]
[1720977496715,1.96901902,3195.7,3195.5,2.50345]
[1720977496913,1.96896127,3195.7,3195.5,5.0069]
[1720977497100,2.77733807,3195.8,3195.5,5.0069]
[1720977497296,1.96903819,3195.7,3195.5,5.0069]
[1720977497725,4.74637626,3195.8,3195.5,5.0069]
[1720977497906,1.96903819,3195.7,3195.5,5.0069]
[1720977498310,1.96903819,3195.7,3195.5,2.50345]
[1720977500254,0.03603878,3195.6,3195.5,2.50345]
[1720977500999,1.96914801,3195.7,3195.5,2.50345]
[1720977501206,0.03603878,3195.6,3195.5,2.50345]
[1720977502314,0.03603878,3195.6,3195.0,2.50384]
[1720977502315,2.45,3195.5,3195.0,2.50384]
[1720977502503,1.96843909,3195.3,3195.0,2.50384]
[1720977502700,1.96843909,3195.2,3195.0,2.50384]
[1720977502913,2.33158916,3195.2,3195.0,2.50384]
[1720977503434,2.33158916,3195.2,3194.6,2.50419]
[1720977503435,5.53733934,3195.1,3194.6,2.50419]
[1720977503636,1.96787131,3194.8,3194.7,6.78875684]
[1720977503847,0.03528736,3194.8,3194.7,6.78875684]
[1720977504032,1.96789225,3194.8,3194.7,6.78875684]
[1720977504355,0.03522432,3194.8,3194.7,6.78875684]
[1720977504699,0.52662022,3194.8,3194.7,6.78875684]
[1720977505542,0.77599379,3194.8,3194.7,6.78875684]
[1720977507019,0.93199379,3194.8,3194.7,6.78875684]
[1720977508106,2.32063914,3194.8,3194.7,6.78875684]
[1720977508303,2.32063914,3194.8,3194.7,9.29289684]
[1720977508545,2.32063914,3194.8,3194.7,2.50414]
[1720977509541,0.68262022,3194.8,3194.7,2.50414]
[1720977509717,2.32063914,3194.8,3194.7,2.50414]
[1720977510149,0.68262022,3194.8,3194.7,2.50414]
[1720977510510,2.31982123,3194.8,3194.7,2.50414]
[1720977511046,0.68262022,3194.8,3194.7,2.50414]
[1720977513026,2.31982123,3194.8,3194.7,2.50414]
[1720977513220,0.91460234,3194.8,3194.7,2.50414]
[1720977513517,0.91460234,3194.8,3194.5,19.94]
[1720977513718,1.63659857,3194.7,3194.3,2.5044]
[1720977514040,0.91460234,3194.8,3194.4,2.50434]
[1720977514041,0.03492167,3194.6,3194.4,2.50434]
[1720977514261,0.6473959,3194.8,3194.4,2.50434]
[1720977514542,0.03496111,3194.7,3194.4,2.50434]
[1720977514912,2.2837723,3194.8,3194.4,2.50434]
[1720977515112,0.03492167,3194.6,3194.4,2.50434]
[1720977515345,0.6473959,3194.8,3194.4,2.50434]
[1720977515918,0.03496111,3194.7,3194.4,2.50434]
[1720977516331,0.6473959,3194.8,3194.7,2.50414]
[1720977516510,0.6473959,3194.8,3194.7,5.00828]
[1720977518213,0.97483693,3194.8,3194.7,5.00828]
[1720977518915,1.00989162,3194.8,3194.7,5.00828]
[1720977520714,0.97483693,3194.8,3194.7,5.00828]
[1720977520915,1.00989162,3194.8,3194.7,5.00828]
[1720977524119,0.97483693,3194.8,3194.7,5.00828]
[1720977524343,1.00989162,3194.8,3194.7,5.00828]
[1720977530030,0.51849572,3194.8,3194.7,5.00828]
[1720977534743,2.1565677,3194.8,3194.7,5.00828]
[1720977535147,2.59737447,3194.8,3194.1,6.90504134]
[1720977535364,2.59737447,3194.8,3194.5,2.50425]
[1720977535365,1.63807198,3194.7,3194.5,2.50425]
[1720977535541,3.88957198,3194.6,3194.5,2.50425]
[1720977535745,3.92477381,3194.6,3194.5,2.50425]
[1720977537062,2.28670183,3194.6,3194.5,2.50425]
[1720977537364,3.92501485,3194.6,3194.5,2.50425]
[1720977538943,2.28670183,3194.6,3194.5,2.50425]
[1720977539143,3.92532473,3194.6,3194.5,2.50425]
[1720977539461,1.67398517,3194.6,3194.5,2.50425]
[1720977540057,2.16540718,3194.6,3194.5,2.50425]
[1720977540433,2.16566345,3194.6,3194.5,2.50425]
[1720977541631,0.52662384,3194.6,3194.5,5.79855]
[1720977541830,0.49142201,3194.6,3194.5,5.79855]
[1720977542270,2.13046162,3194.6,3194.5,5.79855]
[1720977542447,0.49142201,3194.6,3194.5,5.79855]
[1720977542644,2.13098773,3194.6,3194.5,5.79855]
[1720977542889,0.49142201,3194.6,3194.5,5.79855]
[1720977543050,2.13095673,3194.6,3194.5,5.79855]
[1720977543379,2.13121292,3194.6,3194.5,5.79855]
[1720977543594,2.16627181,3194.6,3194.5,5.79855]
[1720977543876,2.16627181,3194.6,3194.5,5.00855]
[1720977544237,0.5264809,3194.6,3194.5,5.00855]
[1720977544435,0.49142201,3194.6,3194.5,5.00855]
[1720977547449,0.52651432,3194.6,3194.5,5.00855]
[1720977548383,2.49496569,3194.6,3194.5,5.00855]
[1720977549513,0.52651432,3194.6,3194.5,5.00855]
[1720977549789,2.46225797,3194.6,3194.5,5.00855]
[1720977550206,2.49740307,3194.6,3194.5,5.00855]
[1720977552795,0.52656711,3194.6,3194.5,5.00855]
[1720977552999,2.49744565,3194.6,3194.5,5.00855]
[1720977553202,2.46230055,3194.6,3194.5,5.00855]
[1720977553378,2.49614308,3194.6,3194.5,5.00855]
[1720977555005,2.79410149,3194.6,3194.3,2.50439]
[1720977555212,5.03141862,3194.5,3194.1,0.1162845]
[1720977555418,2.29779801,3194.3,3194.1,0.01832773]
[1720977555563,2.3153,3194.2,3194.1,0.01832773]
[1720977555764,4.88173088,3194.2,3194.1,0.01832773]
[1720977556188,4.88169931,3194.2,3194.1,0.01832773]
[1720977557369,10.44075931,3194.2,3194.1,0.01832773]
[1720977557809,8.14301908,3194.2,3194.1,0.01832773]
[1720977558009,10.43880425,3194.2,3194.1,0.01832773]
[1720977558193,8.14301908,3194.2,3194.1,0.01832773]
[1720977558508,10.43874134,3194.2,3194.1,0.01832773]
[1720977559618,7.93260539,3194.2,3194.1,0.01832773]
[1720977559822,5.63848908,3194.2,3194.1,0.01832773]
[1720977564308,0.26865908,3194.2,3194.1,0.01832773]
[1720977564479,1.99805391,3194.2,3194.1,0.01832773]
[1720977564680,0.03374654,3194.2,3194.1,0.01832773]
[1720977564874,2.29180079,3194.3,3194.1,0.01832773]
[1720977565781,1.96430737,3194.2,3194.1,0.01832773]
[1720977566181,2.29157095,3194.3,3194.1,0.01832773]
[1720977566402,2.52072805,3194.3,3194.1,0.01832773]
[1720977567716,0.03350201,3194.2,3194.1,0.01832773]
[1720977567882,2.52072805,3194.3,3194.1,0.01832773]
[1720977568212,0.03347682,3194.2,3194.1,0.01832773]
[1720977568679,2.52072805,3194.3,3194.1,0.01832773]
[1720977568880,0.03347682,3194.2,3194.1,0.01832773]
[1720977569184,2.52072805,3194.3,3194.1,0.01832773]
[1720977569415,0.03347682,3194.2,3194.1,0.01832773]
[1720977569815,2.52034983,3194.3,3194.1,0.01832773]
[1720977569979,0.2855118,3194.2,3194.1,0.01832773]
[1720977570185,2.24921111,3194.2,3194.1,0.01832773]
[1720977570495,2.24900355,3194.2,3194.1,0.01832773]
[1720977570707,0.2855118,3194.2,3194.1,0.01832773]
[1720977576421,0.03347682,3194.2,3194.1,0.01832773]
[1720977576803,1.96351976,3194.2,3194.1,0.01832773]
[1720977577120,0.03347343,3194.2,3194.1,0.01832773]
[1720977577314,1.99699319,3194.2,3194.1,0.01832773]
[1720977577521,1.99710654,3194.2,3194.1,0.01832773]
[1720977577721,2.22956654,3194.2,3194.1,0.01832773]
[1720977578621,2.55681984,3194.2,3194.1,0.01832773]
[1720977578819,0.26604678,3194.2,3193.9,2.03152192]
[1720977579018,1.96368643,3194.1,3193.9,2.03152192]
[1720977579230,0.03352214,3194.1,3193.9,2.03152192]
[1720977579411,1.99720857,3194.1,3193.9,2.03152192]
[1720977579612,0.22296686,3194.0,3193.5,2.50698461]
[1720977579919,1.6364374,3193.8,3193.5,3.29698461]
[1720977580312,1.6364374,3193.8,3193.6,2.50501]
[1720977580313,0.03336433,3193.7,3193.6,2.50501]
[1720977580514,1.6364374,3193.8,3193.7,2.50493]
[1720977580714,1.66982859,3193.8,3193.7,2.50493]
[1720977583027,1.66953973,3193.8,3193.7,2.50493]
[1720977583538,1.66959849,3193.8,3193.7,2.50493]
[1720977585937,0.03339119,3193.8,3193.7,2.50493]
[1720977586100,1.66968982,3193.8,3193.7,2.50493]
[1720977586420,1.66970225,3193.8,3193.7,2.50493]
[1720977588829,0.20037402,3193.8,3193.5,2.50698461]
[1720977589038,1.63663945,3193.7,3193.5,2.50698461]
[1720977589199,1.63663945,3193.7,3193.5,5.01200461]
[1720977589396,0.03325632,3193.6,3193.5,2.50693461]
[1720977589702,1.63675178,3193.7,3193.6,2.50499]
[1720977590231,1.63675178,3193.8,3193.7,2.50493]
[1720977590430,1.63675178,3193.9,3193.7,2.50493]
[1720977590933,1.63675178,3193.9,3193.8,2.50485]
[1720977591133,1.96410214,3194.1,3193.8,2.50485]
[1720977591336,2.4425577,3194.1,3193.8,4.83875]
[1720977591513,1.63716079,3193.9,3193.8,4.83875]
[1720977591724,1.63716079,3194.0,3193.9,5.00954]
[1720977592034,1.63716079,3194.2,3194.1,5.00922]
[1720977592206,1.63716079,3194.3,3194.2,5.00906]
[1720977592606,1.63716079,3194.5,3194.4,7.34266]
[1720977592848,2.1285828,3194.6,3194.5,5.0086]
[1720977593017,0.49142201,3194.6,3194.5,5.0086]
[1720977593835,0.5214765,3194.6,3194.5,5.0086]
[1720977595009,0.5214765,3194.6,3194.5,2.5043]
[1720977596265,0.49142201,3194.6,3194.5,2.5043]
[1720977596406,0.52142613,3194.6,3194.5,2.5043]
[1720977599310,2.15951189,3194.6,3194.5,5.0086]
[1720977599511,2.15951089,3194.6,3194.5,5.58846]
[1720977599751,2.15951089,3194.6,3194.5,7.92236]
[1720977599959,0.52142613,3194.6,3194.5,7.92236]
[1720977600652,2.15951089,3194.6,3194.5,7.92236]
[1720977600821,0.52142613,3194.6,3194.5,7.92236]
[1720977602348,0.03000412,3194.6,3194.5,7.92236]
[1720977603015,1.79309014,3194.8,3194.7,5.00828]
[1720977603215,0.156,3194.8,3194.7,5.79828]
[1720977604219,0.156,3194.8,3194.7,6.669484]
[1720977604513,0.18773424,3194.8,3194.7,6.669484]
[1720977605725,0.18773032,3194.8,3194.7,6.669484]
[1720977608326,0.18773032,3194.8,3194.7,9.003384]
[1720977608526,0.18773032,3194.8,3194.7,11.507524]
[1720977608731,0.156,3194.8,3194.7,14.011664]
[1720977609025,0.156,3194.8,3194.7,17.011664]
[1720977613777,0.156,3194.8,3194.7,16.221664]
[1720977614072,0.156,3194.8,3194.7,17.011664]
[1720977619578,0.49126071,3195.3,3195.2,9.95395]
[1720977619766,0.49126071,3195.3,3195.2,14.989731]
[1720977619969,2.3056,3196.1,3196.0,2.50312]
[1720977620671,2.79681151,3196.1,3196.0,2.50312]
[1720977623189,0.49121151,3196.1,3196.0,2.50312]
[1720977630782,0.49121151,3196.1,3195.7,2.50329]
[1720977631109,0.49121151,3196.1,3195.3,6.78875684]
[1720977631110,2.3952,3195.9,3195.3,6.78875684]
[1720977631325,2.3952,3195.7,3195.2,2.50369]
[1720977631632,4.89863,3195.7,3195.0,12.33]
[1720977631873,0.79,3195.8,3194.5,6.78875684]
[1720977631874,0.79,3195.2,3194.5,6.78875684]
[1720977632139,0.79,3195.2,3194.4,2.50435]
[1720977632140,0.79,3195.0,3194.4,2.50435]
[1720977632492,1.69488836,3194.9,3194.4,2.50435]
[1720977632714,0.0643646,3194.9,3194.4,2.50435]
[1720977633721,1.6951564,3194.9,3194.2,21.62328684]
[1720977633914,2.89410864,3194.8,3194.2,21.62328684]
[1720977634290,0.06411572,3194.7,3194.2,21.62328684]
[1720977636236,0.06411572,3194.7,3194.3,2.50446]
[1720977636731,4.02731683,3194.8,3194.3,2.50446]
[1720977636942,2.6046357,3195.1,3194.5,2.5043]
[1720977636943,0.06401649,3194.6,3194.5,2.5043]
[1720977637096,0.06405468,3194.7,3194.6,5.00844]
[1720977637304,1.63211683,3195.3,3194.9,2.50391]
[1720977637546,2.3952,3195.7,3194.9,2.50391]
[1720977637547,1.63211683,3195.4,3194.9,2.50391]
[1720977638040,1.63211683,3195.4,3195.0,2.50389]
[1720977638441,1.63211683,3195.3,3195.0,2.50389]
[1720977639355,1.6336094,3195.3,3195.0,2.50389]
[1720977639572,1.6336094,3195.2,3195.0,2.50389]
[1720977639866,1.6336094,3195.2,3193.6,21.841]
[1720977639867,2.3952,3195.1,3193.6,21.841]
[1720977640031,2.3952,3195.1,3194.4,2.50432]
[1720977640233,4.0288094,3195.1,3194.4,2.50432]
[1720977640570,0.06060818,3195.0,3194.4,2.50432]
[1720977641642,0.06060818,3195.0,3194.5,2.50429]
[1720977642864,1.69513629,3195.0,3194.5,2.50429]
[1720977643170,1.69513629,3195.0,3194.3,2.5044]
[1720977643171,1.63452811,3194.7,3194.3,2.5044]
[1720977643371,2.02204191,3195.0,3194.2,2.5045]
[1720977643372,1.63452811,3194.6,3194.2,2.5045]
[1720977643527,1.63452811,3194.5,3194.2,2.5045]
[1720977643725,2.3952,3194.4,3194.2,2.5045]
[1720977643922,2.45550922,3194.4,3194.2,2.50448]
[1720977644175,0.06030922,3194.4,3194.2,2.50448]
[1720977644468,1.63452811,3194.6,3194.3,2.50446]
[1720977645168,1.63452811,3194.5,3194.0,2.50462]
[1720977645344,1.63452811,3194.5,3194.1,2.50459]
[1720977645747,1.63384158,3194.6,3194.1,2.50459]
[1720977646270,1.63381723,3194.6,3194.1,2.50459]
[1720977646445,1.63381723,3194.6,3194.2,2.50453]
[1720977646774,1.63381723,3194.7,3194.4,2.50431]
[1720977646934,1.63381723,3194.6,3194.5,2.5043]
[1720977647537,1.69443589,3194.6,3194.5,2.5043]
[1720977648171,1.69443589,3194.6,3194.5,3.005161]
[1720977648945,1.69378976,3194.6,3194.5,3.005161]
[1720977649243,1.69378976,3194.6,3194.5,2.5043]
[1720977649990,0.06061866,3194.6,3194.5,2.5043]
[1720977651248,0.06061866,3194.6,3194.5,5.0086]
[1720977651677,1.6331711,3194.8,3194.7,2.50414]
[1720977651845,1.6331711,3194.9,3194.7,2.50414]
[1720977652060,1.6331711,3194.8,3194.7,2.50414]
[1720977652258,1.63283332,3194.9,3194.8,2.50403]
[1720977652892,1.63283332,3195.0,3194.8,2.50403]
[1720977654661,0.06056883,3194.9,3194.8,2.50403]
[1720977654862,0.06056883,3194.9,3194.8,5.00809]
[1720977655094,0.06056883,3194.9,3194.8,5.508899]
[1720977655278,1.63283332,3195.3,3195.0,2.50389]
[1720977655576,2.3249,3195.5,3195.0,2.50389]
[1720977655577,2.65259669,3195.5,3195.0,2.50389]
[1720977655764,1.63291519,3195.4,3195.2,2.50371]
[1720977656202,1.63291519,3195.3,3195.2,2.50371]
[1720977658071,1.63291519,3195.3,3195.2,5.00746]
[1720977658263,0.06074841,3195.3,3195.2,5.00746]
[1720977659317,1.63301832,3195.4,3195.3,5.00734]
[1720977659535,1.63307199,3195.4,3195.3,5.00734]
[1720977659832,1.96076868,3195.5,3195.4,2.50359]
[1720977660621,0.49131263,3195.5,3195.4,2.50359]
[1720977660795,0.49131263,3195.5,3195.4,5.257539]
[1720977662012,0.5501453,3195.5,3195.4,5.257539]
[1720977663792,0.5501453,3195.5,3195.4,7.761129]
[1720977664197,0.49131263,3195.5,3195.4,7.761129]
[1720977665825,0.49131263,3195.5,3195.4,7.917129]
[1720977666197,0.49131263,3195.5,3195.4,5.16318]
[1720977666532,0.55033613,3195.5,3195.4,5.16318]
[1720977667635,0.55033613,3195.5,3195.4,7.66677]
[1720977667787,0.49131263,3195.5,3195.4,7.66677]
[1720977671792,0.49131263,3195.5,3195.4,5.16318]
[1720977671993,0.49131263,3195.5,3195.4,8.433451]
[1720977673525,0.49131263,3195.5,3195.4,5.929861]
[1720977673699,0.49131263,3195.5,3195.4,8.433451]
[1720977679854,0.49131263,3195.5,3195.4,5.929861]
[1720977680160,0.49131263,3195.5,3195.4,5.16318]
[1720977680469,0.55013533,3195.5,3195.4,5.16318]
[1720977682477,0.49131263,3195.5,3195.4,5.16318]
[1720977682831,0.55008656,3195.5,3195.4,5.16318]
[1720977688536,0.49131263,3195.5,3195.4,5.16318]
[1720977688731,0.55008656,3195.5,3195.4,5.16318]
[1720977689965,0.55008656,3195.5,3195.4,2.65959]
[1720977690385,0.55008656,3195.5,3195.4,3.45059]
[1720977697781,0.55008656,3195.5,3195.4,6.47882971]
[1720977698550,0.49131263,3195.5,3195.4,6.47882971]
[1720977698969,0.55012051,3195.5,3195.4,6.47882971]
[1720977699489,0.55012051,3195.5,3195.4,5.95418]
[1720977701396,2.18521098,3195.5,3195.4,5.95418]
[1720977701601,0.55012051,3195.5,3195.4,5.95418]
[1720977701787,2.18733415,3195.5,3195.4,5.95418]
[1720977701963,2.12851669,3195.5,3195.4,5.95418]
[1720977702158,2.18728799,3195.5,3195.4,5.95418]
[1720977703404,0.55008393,3195.5,3195.4,5.95418]
[1720977703972,0.55008393,3195.5,3195.4,2.65959]
[1720977704197,0.55008393,3195.5,3195.4,5.95418]
[1720977709403,0.55008393,3195.5,3195.4,6.799971]
[1720977711675,0.49131263,3195.5,3195.4,6.799971]
[1720977711910,0.54810959,3195.5,3195.4,6.799971]
[1720977712374,0.49131263,3195.5,3195.4,6.799971]
[1720977712574,0.54808521,3195.5,3195.4,6.799971]
[1720977712981,0.54808521,3195.5,3195.4,9.303561]
[1720977716131,0.54808521,3195.5,3195.4,8.512561]
[1720977716313,0.54808521,3195.5,3195.4,7.66677]
[1720977716515,0.54808521,3195.5,3195.4,8.45777]
[1720977718722,0.49131263,3195.5,3195.4,8.45777]
[1720977718927,0.5480793,3195.5,3195.4,8.45777]
[1720977720023,0.49131263,3195.5,3195.4,8.45777]
[1720977720355,0.54806819,3195.5,3195.4,8.45777]
[1720977726337,0.54806819,3195.5,3195.4,9.303547]
[1720977728045,0.49131263,3195.5,3195.4,9.303547]
[1720977728252,0.5480438,3195.5,3195.4,9.303547]
[1720977730563,0.5480438,3195.5,3195.4,2.65959]
[1720977735007,2.84338118,3195.5,3195.4,0.156]
[1720977735156,2.8724438,3195.5,3195.4,0.156]
[1720977735607,6.1669638,3195.5,3195.4,0.156]
[1720977735755,10.56650519,3195.5,3195.4,0.156]
[1720977735955,7.85513791,3195.5,3195.4,0.156]
[1720977737583,2.3244,3195.3,3194.8,6.45348406]
[1720977737790,4.28972293,3194.9,3194.8,6.45348406]
[1720977738318,2.75337229,3194.9,3194.8,6.45348406]
[1720977738902,3.2447746,3194.9,3194.8,6.45348406]
[1720977739458,3.29793903,3194.9,3194.8,6.45348406]
[1720977740155,5.26150872,3194.9,3194.8,6.45348406]
[1720977740577,5.26150872,3194.9,3194.5,2.5043]
[1720977740753,1.63576671,3194.6,3194.5,2.5043]
[1720977740967,1.63576876,3194.6,3194.5,2.5043]
[1720977741188,1.68881863,3194.6,3194.5,2.5043]
[1720977741400,1.68834277,3194.6,3194.5,2.5043]
[1720977741711,0.05304987,3194.6,3194.5,5.7996]
[1720977742071,1.6352929,3194.8,3194.7,5.00828]
[1720977742494,0.49140231,3194.9,3194.8,2.50406]
[1720977743009,0.54456674,3194.9,3194.8,2.50406]
[1720977744648,2.17883011,3194.9,3194.8,2.50406]
[1720977744922,0.54456674,3194.9,3194.8,2.50406]
[1720977745398,2.17866706,3194.9,3194.8,2.50406]
[1720977747692,2.17817208,3194.9,3194.8,2.50406]
[1720977749932,2.17817208,3194.9,3194.7,2.50414]
[1720977751002,0.54456674,3194.9,3194.7,2.50414]
[1720977751205,2.17776883,3194.9,3194.7,2.50414]
[1720977751514,2.39554571,3194.9,3194.7,2.50414]
[1720977754040,3.95290209,3194.8,3194.4,2.50431]
[1720977754248,2.3197,3194.8,3194.4,2.50431]
[1720977754416,0.05121525,3194.7,3194.4,2.50431]
[1720977754619,3.95262836,3194.8,3194.4,2.50431]
[1720977754953,0.05117706,3194.6,3194.4,2.50431]
[1720977755237,0.05121525,3194.7,3194.4,5.00862]
[1720977755443,0.05113887,3194.5,3194.4,2.50431]
[1720977755618,2.3197,3194.8,3194.4,5.00861]
[1720977755818,0.05110109,3194.5,3194.4,2.5043]
[1720977756018,2.3197,3194.8,3194.4,5.0086]
[1720977756230,0.05113887,3194.5,3194.4,2.5043]
[1720977756547,3.95262836,3194.8,3194.5,2.50429]
[1720977756548,2.3197,3194.8,3194.5,2.50429]
[1720977757639,2.3197,3194.8,3194.6,2.50422]
[1720977758043,0.49140231,3194.9,3194.8,2.50406]
[1720977758257,0.49140231,3194.9,3194.8,5.00812]
[1720977758541,0.49140231,3194.9,3194.8,7.9103845]
[1720977759308,0.49140231,3194.9,3194.8,10.9103845]
[1720977760931,0.32769754,3195.8,3195.7,2.50336]
[1720977761142,1.96098481,3195.8,3195.7,2.50336]
[1720977761444,0.81895041,3195.8,3195.7,2.50336]
[1720977761646,1.14646317,3195.8,3195.7,2.50336]
[1720977764226,0.86855843,3195.8,3195.7,2.50336]
[1720977766631,0.86855843,3195.8,3195.5,2.5035]
[1720977766949,2.3197,3195.7,3195.3,2.50365]
[1720977767135,1.63365937,3195.5,3195.3,2.50365]
[1720977767339,2.03395351,3195.5,3195.3,2.50365]
[1720977767559,0.40029414,3195.5,3195.3,2.50365]
[1720977767766,1.68315209,3195.4,3195.3,2.50365]
[1720977768053,0.04945533,3195.4,3195.3,2.50365]
[1720977771989,1.68393517,3195.4,3195.3,2.50365]
[1720977777359,0.04945533,3195.4,3195.3,2.50365]
[1720977777696,1.96390976,3195.6,3195.4,2.50359]
[1720977777994,0.51025602,3195.6,3195.4,2.50359]
[1720977778383,0.04837679,3195.5,3195.4,2.50359]
[1720977786695,2.47383036,3195.6,3195.4,2.50359]
[1720977786898,0.04853101,3195.5,3195.4,2.50359]
[1720977788874,1.96353159,3195.7,3195.4,2.50359]
[1720977789097,0.04853611,3195.5,3195.4,2.50359]
[1720977789305,1.96353159,3195.7,3195.4,2.50359]
[1720977789470,0.04852391,3195.5,3195.4,2.50359]
[1720977789667,1.96353159,3195.7,3195.4,2.50359]
[1720977789896,0.04849953,3195.5,3195.4,2.50359]
[1720977791511,2.2607,3195.4,3195.0,6.45348406]
[1720977791682,1.63616532,3195.2,3195.0,2.5039]
[1720977792078,1.68446119,3195.1,3194.8,2.50401]
[1720977792377,4.22432368,3195.4,3194.8,2.50403]
[1720977792378,1.63616532,3194.9,3194.8,2.50403]
[1720977792688,1.85285936,3194.9,3194.6,8.95767406]
[1720977793071,1.85285936,3194.9,3194.7,14.83414]
[1720977793266,1.85272256,3194.9,3194.7,14.83414]
[1720977793473,0.04825296,3194.9,3194.8,2.50406]
[1720977793686,0.04825296,3194.9,3194.8,3.29506]
[1720977793687,1.68426701,3194.9,3194.8,3.29506]
[1720977794023,1.96323321,3195.2,3194.9,2.50395]
[1720977794223,0.0484884,3195.1,3194.9,2.50395]
[1720977794524,1.96323321,3195.2,3194.9,2.50395]
[1720977794932,0.0484884,3195.1,3194.9,2.50395]
[1720977795293,1.96323321,3195.2,3194.9,2.50395]
[1720977795719,0.0484884,3195.1,3194.9,2.50395]
[1720977796026,1.96323321,3195.2,3194.9,2.50395]
[1720977796626,0.0484884,3195.1,3195.0,2.5039]
[1720977796802,1.96337389,3195.2,3195.0,2.5039]
[1720977797007,0.04849368,3195.1,3195.0,2.5039]
[1720977798430,0.04849368,3195.1,3195.0,5.00781]
[1720977798613,1.96337389,3195.2,3195.1,2.50383]
[1720977798801,1.96366117,3195.3,3195.2,2.50375]
[1720977800227,1.96382702,3195.3,3195.2,2.50375]
[1720977800809,2.2607,3195.2,3194.6,6.45348406]
[1720977801004,1.63683981,3194.7,3194.6,6.45348406]
[1720977801215,1.63683981,3194.7,3194.5,2.50428]
[1720977801424,1.63685134,3194.6,3194.5,2.50428]
[1720977801733,1.96420777,3194.8,3194.3,2.50439]
[1720977801895,1.96420777,3194.5,3194.3,2.50439]
[1720977802095,1.96420777,3194.5,3194.1,2.50458]
[1720977802296,1.63652326,3194.2,3194.1,2.50458]
[1720977802715,1.63613491,3194.2,3194.1,2.50458]
[1720977803533,3.32722078,3194.7,3194.1,5.00914]
[1720977803698,1.63580568,3194.3,3194.1,5.00914]
[1720977803897,3.32722078,3194.7,3194.1,5.00914]
[1720977804093,1.63579238,3194.3,3194.1,5.00914]
[1720977804529,1.63579238,3194.3,3194.1,2.50456]
[1720977806333,1.63579238,3194.4,3194.1,2.50456]
[1720977806701,3.32722078,3194.7,3194.1,2.50456]
[1720977806900,1.63480709,3194.4,3194.1,2.50456]
[1720977808720,1.63480709,3194.4,3194.1,5.00912]
[1720977810134,0.77942416,3194.6,3194.1,5.00912]
[1720977810135,0.77942416,3194.6,3194.1,2.50456]
[1720977810336,1.63413347,3194.4,3194.1,2.50456]
[1720977810651,2.2607,3194.3,3193.7,2.5049]
[1720977810818,1.63413347,3194.0,3193.8,2.50485]
[1720977812032,1.63413347,3194.1,3193.8,2.50485]
[1720977813409,2.2607,3194.3,3193.8,2.50485]
[1720977813605,1.63243446,3194.1,3193.8,2.50485]
[1720977814123,1.6324268,3194.1,3193.8,2.50485]
[1720977814415,1.6324268,3194.2,3193.8,2.50485]
[1720977816855,1.6315483,3194.2,3193.8,2.50485]
[1720977818428,4.3687553,3194.3,3193.8,2.50485]
[1720977819257,4.3687553,3194.3,3193.9,2.50476]
[1720977819930,2.737207,3194.3,3193.9,2.50476]
[1720977820331,4.36832329,3194.3,3193.9,2.50476]
[1720977820651,0.43683233,3194.2,3193.7,2.5049]
[1720977820961,1.63111629,3194.0,3193.6,8.95848406]
[1720977821456,1.63111629,3194.0,3193.6,6.45348406]
[1720977821924,2.12264746,3194.0,3193.6,6.45348406]
[1720977822478,6.53384629,3193.9,3193.6,6.45348406]
[1720977822766,3.20375404,3193.8,3193.6,6.45348406]
[1720977823259,1.57263775,3193.8,3193.6,6.45348406]
[1720977823561,3.2029304,3193.8,3193.6,6.45348406]
[1720977823783,4.07750775,3193.8,3193.5,0.00191461]
[1720977823930,0.89802378,3193.7,3193.5,0.00191461]